bitfinex/quotes_SOLUSD_20220212
["timestamp","ask_amount","ask_price","bid_price","bid_amount"]
[1644692034866,5.067,98.742,98.62,14.63]
[1644692035065,5.066,98.751,98.621,5.066]
[1644692035366,62.70343695,98.75,98.622,41.8506726]
[1644692035565,12.28453781,98.749,98.623,5.066]
[1644692035764,4.27285004,98.746,98.623,5.066]
[1644692035965,5.066,98.745,98.623,5.066]
[1644692036172,5.066,98.745,98.63,15.2059]
[1644692036173,15.2045,98.74,98.63,15.2059]
[1644692036373,5.066,98.739,98.63,15.2059]
[1644692036575,5.066,98.739,98.631,0.25]
[1644692036773,7.68990296,98.739,98.631,0.25]
[1644692037172,2.62390296,98.738,98.631,0.25]
[1644692037373,5.066,98.737,98.63,15.2059]
[1644692037572,15.2083,98.72,98.623,5.066]
[1644692037773,112.5,98.709,98.623,5.066]
[1644692037975,5.067,98.708,98.622,41.8506726]
[1644692038377,7.69090296,98.708,98.622,41.8506726]
[1644692038580,7.69090296,98.708,98.623,0.25]
[1644692039577,44.67251635,98.699,98.623,0.25]
[1644692039778,5.067,98.698,98.623,0.25]
[1644692039977,7.69090296,98.698,98.622,41.8506726]
[1644692040179,2.62390296,98.697,98.623,0.25]
[1644692040478,5.067,98.696,98.623,0.25]
[1644692040678,5.067,98.696,98.622,41.8506726]
[1644692040879,2.62390296,98.695,98.622,41.8506726]
[1644692041282,5.067,98.694,98.622,41.8506726]
[1644692041581,2.62390296,98.693,98.622,41.8506726]
[1644692041782,2.62390296,98.693,98.602,5.067]
[1644692041783,15.2111,98.69,98.602,5.067]
[1644692041980,14.63,98.68,98.58,15.2135]
[1644692042180,5.069,98.679,98.58,15.2135]
[1644692042379,7.69290296,98.679,98.58,15.2135]
[1644692042786,41.82462549,98.678,98.581,39.22218713]
[1644692042987,15.2151,98.67,98.56,15.2169]
[1644692043190,14.63,98.66,98.56,15.2169]
[1644692043383,14.63,98.65,98.561,5.07]
[1644692043590,5.07,98.649,98.56,15.2169]
[1644692043989,44.6607175,98.648,98.561,47.21704379]
[1644692044287,44.6607175,98.648,98.562,5.07]
[1644692044488,15.2188,98.64,98.561,47.21704379]
[1644692044684,15.2188,98.64,98.562,5.07]
[1644692044885,15.2188,98.64,98.562,5.32]
[1644692045887,5.07,98.639,98.562,0.25]
[1644692047289,15.2188,98.64,98.563,5.07]
[1644692047496,42.62109294,98.629,98.562,0.25]
[1644692047690,42.62109294,98.629,98.543,2.62390296]
[1644692047691,5.071,98.628,98.543,2.62390296]
[1644692047890,5.071,98.628,98.532,5.07]
[1644692047891,14.63,98.62,98.532,5.07]
[1644692048097,5.072,98.619,98.521,5.072]
[1644692048289,5.072,98.619,98.51,50.7384]
[1644692048290,5.072,98.619,98.519,5.072]
[1644692048690,5.072,98.619,98.52,42.54856531]
[1644692048890,14.63,98.62,98.521,5.072]
[1644692049099,5.072,98.618,98.521,5.322]
[1644692049293,14.63,98.62,98.521,5.322]
[1644692049495,29.709,98.62,98.521,5.322]
[1644692049893,15.2237,98.61,98.521,5.322]
[1644692050093,53.22947351,98.609,98.521,5.322]
[1644692051795,48.15747351,98.609,98.521,5.322]
[1644692051997,2.62390296,98.608,98.521,5.322]
[1644692052196,15.2247,98.6,98.521,5.322]
[1644692052396,5.073,98.599,98.521,5.072]
[1644692052595,2.62390296,98.599,98.521,5.072]
[1644692052796,5.073,98.598,98.521,5.072]
[1644692052997,7.69690296,98.598,98.521,5.072]
[1644692053196,2.62390296,98.597,98.521,5.072]
[1644692053399,5.073,98.596,98.521,5.072]
[1644692053600,5.073,98.596,98.52,42.54856531]
[1644692053798,15.2261,98.59,98.52,42.54856531]
[1644692053997,42.97558379,98.589,98.52,42.54856531]
[1644692054199,5.073,98.588,98.52,42.54856531]
[1644692059505,42.97558379,98.589,98.52,42.54856531]
[1644692060808,5.073,98.588,98.52,42.54856531]
[1644692061210,5.073,98.588,98.521,0.25]
[1644692061408,42.97558379,98.589,98.521,0.25]
[1644692064831,5.073,98.588,98.521,0.25]
[1644692066235,42.97558379,98.589,98.521,0.25]
[1644692067537,5.073,98.588,98.521,0.25]
[1644692068836,42.97558379,98.589,98.521,0.25]
[1644692071443,2.62390296,98.596,98.521,0.25]
[1644692071444,5.073,98.607,98.521,100.55]
[1644692071643,5.073,98.607,98.523,100.3]
[1644692071840,5.072,98.628,98.523,100.3]
[1644692072039,5.29824601,98.629,98.523,100.3]
[1644692072441,36.97587568,98.607,98.523,100.3]
[1644692072642,36.97587568,98.607,98.522,23.4652]
[1644692072643,36.97587568,98.607,98.525,100.3]
[1644692072844,36.97587568,98.607,98.53,15.2224]
[1644692073141,36.97587568,98.607,98.526,5.072]
[1644692073348,7.69590296,98.606,98.522,23.4652]
[1644692073541,7.69590296,98.606,98.488,5.072]
[1644692073740,7.69590296,98.606,98.486,5.072]
[1644692073942,15.2282,98.6,98.49,15.228]
[1644692074142,5.073,98.599,98.501,100.3]
[1644692074342,7.69690296,98.599,98.501,100.3]
[1644692074543,2.62390296,98.598,98.501,100.3]
[1644692074743,5.073,98.597,98.502,24.5625]
[1644692075148,7.69690296,98.597,98.521,0.25]
[1644692075349,2.62390296,98.597,98.521,0.25]
[1644692075544,5.073,98.596,98.521,0.25]
[1644692076048,26.55420296,98.595,98.521,0.25]
[1644692076543,7.69690296,98.594,98.521,0.25]
[1644692076947,2.62390296,98.593,98.521,0.25]
[1644692077144,39.43102503,98.591,98.521,0.25]
[1644692077345,5.073,98.59,98.521,0.25]
[1644692077545,7.69690296,98.59,98.521,0.25]
[1644692077749,2.62390296,98.589,98.521,0.25]
[1644692077944,5.073,98.588,98.521,0.25]
[1644692078345,2.62390296,98.587,98.521,0.25]
[1644692078546,2.62390296,98.587,98.503,34.31894522]
[1644692078748,5.073,98.586,98.504,0.25]
[1644692079148,2.62390296,98.585,98.504,0.25]
[1644692079550,5.073,98.584,98.504,0.25]
[1644692079952,2.62390296,98.583,98.504,0.25]
[1644692080153,23.3467,98.583,98.504,0.25]
[1644692080356,5.073,98.582,98.504,0.25]
[1644692080558,5.073,98.582,98.505,5.073]
[1644692084863,5.073,98.582,98.504,0.25]
[1644692086065,100.3,98.581,98.504,0.25]
[1644692086263,5.073,98.58,98.504,0.25]
[1644692086866,20.3039,98.58,98.504,0.25]
[1644692087566,2.62390296,98.579,98.503,34.31894522]
[1644692087768,5.074,98.578,98.503,34.31894522]
[1644692088267,42.99385442,98.576,98.503,34.31894522]
[1644692088469,100.3,98.575,98.503,34.31894522]
[1644692088685,100.3,98.573,98.503,34.31894522]
[1644692088885,100.3,98.571,98.503,34.31894522]
[1644692089285,5.074,98.57,98.503,34.31894522]
[1644692090586,100.3,98.571,98.503,34.31894522]
[1644692091285,19.977,98.575,98.503,34.31894522]
[1644692091888,2.62390296,98.574,98.503,34.31894522]
[1644692092087,5.074,98.573,98.503,34.31894522]
[1644692092489,102.92390296,98.572,98.503,34.31894522]
[1644692092888,7.69790296,98.571,98.503,34.31894522]
[1644692093288,2.62390296,98.57,98.503,34.31894522]
[1644692093493,5.074,98.569,98.503,34.31894522]
[1644692093889,2.62390296,98.568,98.503,34.31894522]
[1644692094491,2.62390296,98.568,98.484,22.7787]
[1644692094692,100.3,98.559,98.465,5.074]
[1644692094891,5.075,98.558,98.451,29.6516]
[1644692095091,7.69890296,98.558,98.451,29.6516]
[1644692095391,147.193811,98.557,98.483,34.21002083]
[1644692095591,100.3,98.555,98.483,34.21002083]
[1644692095792,5.075,98.554,98.483,34.21002083]
[1644692095995,7.69890296,98.554,98.483,34.21002083]
[1644692096191,100.3,98.553,98.483,34.21002083]
[1644692096393,100.3,98.551,98.483,34.21002083]
[1644692096595,100.3,98.549,98.483,34.21002083]
[1644692097192,2.62390296,98.548,98.483,34.21002083]
[1644692097393,5.075,98.547,98.483,34.21002083]
[1644692097795,102.92390296,98.546,98.483,34.21002083]
[1644692098193,7.69890296,98.545,98.483,34.21002083]
[1644692098395,100.3,98.544,98.483,34.21002083]
[1644692100801,36.96099636,98.542,98.483,34.21002083]
[1644692100994,105.375,98.541,98.483,34.21002083]
[1644692102998,5.075,98.541,98.483,34.21002083]
[1644692103396,36.96099636,98.542,98.483,34.21002083]
[1644692103900,2.84416442,98.559,98.483,34.21002083]
[1644692104097,2.84416442,98.565,98.484,30.1215]
[1644692104296,15.2325,98.57,98.484,30.1215]
[1644692104897,48.80802107,98.569,98.484,30.1215]
[1644692106100,5.074,98.568,98.484,30.1215]
[1644692109704,5.074,98.568,98.484,25.0465]
[1644692109906,5.074,98.568,98.484,24.7965]
[1644692110104,15.2327,98.56,98.484,24.7965]
[1644692110304,5.075,98.559,98.484,24.7965]
[1644692110504,100.3,98.558,98.482,23.9175]
[1644692110706,100.3,98.549,98.482,23.9175]
[1644692110906,2.84416442,98.546,98.446,24.9216]
[1644692111105,2.84416442,98.542,98.446,24.9216]
[1644692111305,29.8671,98.54,98.446,24.9216]
[1644692111506,29.8671,98.54,98.447,51.61813822]
[1644692111710,29.4378,98.539,98.448,0.25]
[1644692111907,32.06170296,98.539,98.449,5.075]
[1644692112306,32.06170296,98.539,98.448,5.075]
[1644692112505,29.4378,98.539,98.447,46.54313822]
[1644692113506,29.4378,98.539,98.448,0.25]
[1644692116221,24.3628,98.539,98.449,5.075]
[1644692116412,5.075,98.538,98.449,5.075]
[1644692116912,15.2372,98.53,98.449,5.075]
[1644692117113,5.075,98.529,98.449,5.075]
[1644692118315,5.075,98.529,98.447,46.54313822]
[1644692119016,5.075,98.529,98.446,24.9216]
[1644692119217,15.2386,98.52,98.446,24.9216]
[1644692119419,5.077,98.519,98.446,24.9216]
[1644692119614,5.077,98.519,98.447,0.25]
[1644692119816,5.077,98.527,98.447,0.25]
[1644692120015,44.59554439,98.525,98.447,0.25]
[1644692120216,100.3,98.523,98.447,0.25]
[1644692120416,100.3,98.521,98.447,0.25]
[1644692120618,100.3,98.519,98.447,0.25]
[1644692120819,38.00348234,98.509,98.447,0.25]
[1644692121421,38.00348234,98.509,98.424,0.024]
[1644692121621,1.42232456,98.493,98.424,24.3958]
[1644692121823,1.42232456,98.491,98.431,0.25]
[1644692122221,5.078,98.49,98.431,0.25]
[1644692122441,41.4173251,98.489,98.431,40.1270799]
[1644692123945,41.4173251,98.489,98.424,24.3718]
[1644692123946,1.42232456,98.487,98.424,24.3718]
[1644692124142,1.42232456,98.487,98.418,0.024]
[1644692124347,1.42232456,98.477,98.417,5.077]
[1644692124544,1.42232456,98.474,98.417,5.077]
[1644692124744,14.63,98.46,98.417,5.077]
[1644692124943,100.3,98.458,98.417,5.077]
[1644692125147,15.2499,98.45,98.417,5.077]
[1644692125343,29.8799,98.45,98.417,5.077]
[1644692125545,5.079,98.449,98.417,5.077]
[1644692129746,2.62390296,98.448,98.417,5.077]
[1644692129946,5.079,98.447,98.417,5.077]
[1644692130349,39.14398883,98.439,98.417,5.077]
[1644692130748,5.079,98.438,98.417,5.077]
[1644692132152,5.079,98.438,98.388,36.77142972]
[1644692135753,39.14398883,98.439,98.388,36.77142972]
[1644692136755,44.22398883,98.439,98.388,36.77142972]
[1644692140860,44.22398883,98.439,98.366,0.024]
[1644692140861,39.14398883,98.439,98.367,5.08]
[1644692141061,63.27758883,98.439,98.367,5.08]
[1644692141762,63.27758883,98.439,98.368,34.87182544]
[1644692143066,5.081,98.438,98.368,34.87182544]
[1644692147571,1.42232456,98.449,98.369,102.92390296]
[1644692147769,5.081,98.453,98.369,102.92390296]
[1644692147770,1.42232456,98.468,98.369,102.92390296]
[1644692147971,1.42232456,98.483,98.38,14.63]
[1644692148172,1.42232456,98.487,98.382,100.3]
[1644692148370,2.84416442,98.514,98.383,66.0]
[1644692148573,5.079,98.523,98.383,66.0]
[1644692148574,42.82963223,98.52,98.411,39.67996053]
[1644692148769,42.82963223,98.52,98.412,100.3]
[1644692148977,42.82963223,98.52,98.42,14.63]
[1644692149170,5.077,98.519,98.421,5.077]
[1644692149370,42.82963223,98.52,98.422,100.3]
[1644692149571,5.077,98.519,98.422,100.3]
[1644692150277,2.62390296,98.518,98.422,100.3]
[1644692150474,5.077,98.517,98.422,100.3]
[1644692151077,5.077,98.517,98.423,105.377]
[1644692151283,5.077,98.517,98.423,100.3]
[1644692151475,5.077,98.517,98.424,5.077]
[1644692151675,5.077,98.517,98.426,42.9381231]
[1644692151875,5.077,98.517,98.427,5.077]
[1644692153176,5.077,98.517,98.428,100.3]
[1644692155476,5.077,98.517,98.426,42.9381231]
[1644692155477,5.077,98.517,98.43,100.3]
[1644692155878,5.077,98.517,98.431,5.077]
[1644692156379,5.077,98.517,98.432,100.3]
[1644692156781,5.077,98.517,98.433,5.077]
[1644692157179,5.077,98.517,98.434,100.3]
[1644692158085,24.0486,98.516,98.434,100.3]
[1644692158281,5.077,98.515,98.435,5.077]
[1644692159581,24.0486,98.516,98.435,5.077]
[1644692162584,29.8688,98.52,98.436,100.3]
[1644692162783,7.70090296,98.532,98.436,100.3]
[1644692162784,2.62390296,98.532,98.436,102.92390296]
[1644692162989,5.075,98.556,98.45,14.63]
[1644692163183,2.62390296,98.568,98.451,124.9344]
[1644692163483,5.075,98.567,98.451,127.55830296]
[1644692163705,38.41618992,98.566,98.453,100.3]
[1644692164084,38.41618992,98.566,98.454,2.62390296]
[1644692164383,38.41618992,98.566,98.48,15.2294]
[1644692164585,38.41618992,98.566,98.482,139.56576248]
[1644692164785,38.41618992,98.566,98.483,5.074]
[1644692165688,38.41618992,98.566,98.484,100.3]
[1644692165983,38.41618992,98.566,98.49,15.2282]
[1644692166183,38.41618992,98.566,98.492,100.3]
[1644692166383,2.62390296,98.565,98.491,5.074]
[1644692166585,7.69790296,98.565,98.482,39.26576248]
[1644692166785,7.69790296,98.565,98.483,100.3]
[1644692166984,2.62390296,98.564,98.483,100.3]
[1644692167184,5.074,98.563,98.483,100.3]
[1644692167684,2.62390296,98.562,98.483,100.3]
[1644692167885,38.41618992,98.566,98.485,100.3]
[1644692168189,5.075,98.561,98.485,100.3]
[1644692168386,5.074,98.565,98.486,5.074]
[1644692168587,5.074,98.56,98.486,5.074]
[1644692168787,5.074,98.565,98.486,5.074]
[1644692169589,5.074,98.565,98.487,100.3]
[1644692169990,5.074,98.565,98.489,100.3]
[1644692170391,5.074,98.565,98.491,100.3]
[1644692172411,5.074,98.591,98.492,2.62390296]
[1644692172611,5.073,98.599,98.492,2.62390296]
[1644692172812,5.073,98.602,98.492,2.62390296]
[1644692173012,2.62390296,98.609,98.492,2.62390296]
[1644692173213,43.91389718,98.608,98.492,2.62390296]
[1644692173416,4.36738634,98.607,98.493,5.073]
[1644692173615,5.073,98.606,98.493,5.073]
[1644692173815,5.073,98.606,98.501,38.21818692]
[1644692174014,5.073,98.607,98.502,105.373]
[1644692174216,5.073,98.605,98.503,48.7731]
[1644692174418,2.62390296,98.605,98.504,5.073]
[1644692174620,5.073,98.604,98.504,5.073]
[1644692174818,5.073,98.604,98.505,100.3]
[1644692175017,5.073,98.604,98.507,100.3]
[1644692175518,5.073,98.604,98.509,100.3]
[1644692175719,4.36939817,98.603,98.51,15.2247]
[1644692175923,15.2254,98.6,98.511,100.3]
[1644692176226,9.44239817,98.599,98.511,100.3]
[1644692176419,7.69690296,98.599,98.511,100.3]
[1644692179121,23.3956,98.598,98.511,100.3]
[1644692179422,5.073,98.597,98.511,100.3]
[1644692180026,5.073,98.597,98.512,0.25]
[1644692180223,5.073,98.597,98.514,100.3]
[1644692180423,5.073,98.597,98.516,45.06221604]
[1644692182228,20.6654,98.597,98.516,45.06221604]
[1644692183833,15.2269,98.59,98.516,45.06221604]
[1644692184031,5.073,98.589,98.516,45.06221604]
[1644692184230,4.37468472,98.588,98.516,45.06221604]
[1644692184431,6.99858768,98.588,98.516,45.06221604]
[1644692184632,9.44768472,98.587,98.49,15.2283]
[1644692184832,4.37468472,98.586,98.491,22.7852]
[1644692185034,5.073,98.585,98.491,22.7852]
[1644692185333,15.2294,98.58,98.504,0.25]
[1644692185532,5.073,98.585,98.504,0.25]
[1644692185533,5.073,98.579,98.504,0.25]
[1644692185735,41.60155855,98.578,98.504,36.75065242]
[1644692186033,5.074,98.577,98.504,36.75065242]
[1644692186234,7.69790296,98.577,98.504,36.75065242]
[1644692186436,2.62390296,98.576,98.504,36.75065242]
[1644692186634,5.074,98.575,98.504,36.75065242]
[1644692186833,15.2307,98.57,98.504,36.75065242]
[1644692187033,5.074,98.569,98.504,0.25]
[1644692187234,7.69790296,98.569,98.504,0.25]
[1644692187937,7.69790296,98.569,98.502,43.81432058]
[1644692188238,2.62390296,98.568,98.491,22.7852]
[1644692188437,15.2318,98.56,98.475,5.074]
[1644692188638,24.2785,98.559,98.477,5.075]
[1644692188839,4.38745713,98.558,98.471,29.7072]
[1644692189043,4.38745713,98.558,98.481,100.3]
[1644692189240,24.2785,98.559,98.483,100.3]
[1644692189741,24.2785,98.559,98.485,100.3]
[1644692190552,24.2785,98.559,98.486,24.9796]
[1644692190741,5.074,98.558,98.49,15.2289]
[1644692192049,24.2785,98.559,98.491,5.074]
[1644692192447,24.2785,98.559,98.492,100.3]
[1644692195354,5.074,98.566,98.492,100.3]
[1644692195556,5.074,98.566,98.493,2.62390296]
[1644692195853,5.074,98.566,98.501,100.3]
[1644692196054,23.6274,98.577,98.502,36.20284681]
[1644692196254,4.39738856,98.576,98.503,24.9739]
[1644692196455,9.47138856,98.576,98.504,100.3]
[1644692196657,4.39738856,98.575,98.504,100.3]
[1644692196861,5.074,98.574,98.504,100.3]
[1644692197160,23.6274,98.577,98.506,100.3]
[1644692197357,4.39319171,98.576,98.506,100.3]
[1644692199474,4.39319171,98.576,98.51,15.2256]
[1644692199672,4.39319171,98.577,98.511,100.3]
[1644692199872,4.39319171,98.577,98.511,105.373]
[1644692200974,4.39319171,98.577,98.511,100.3]
[1644692202175,4.39319171,98.577,98.52,15.2241]
[1644692203476,5.073,98.576,98.52,15.2241]
[1644692203676,4.39319171,98.575,98.52,15.2241]
[1644692204078,5.073,98.574,98.52,15.2241]
[1644692204580,5.073,98.577,98.52,15.2241]
[1644692204777,4.3936826,98.576,98.52,15.2241]
[1644692204977,5.073,98.575,98.52,15.2241]
[1644692205480,5.073,98.577,98.52,15.2241]
[1644692205679,4.39341251,98.576,98.52,15.2241]
[1644692207283,4.39341251,98.576,98.512,2.62390296]
[1644692207482,7.69690296,98.575,98.496,2.62390296]
[1644692207682,14.63,98.57,98.481,23.7492]
[1644692207882,2.84416442,98.565,98.474,105.374]
[1644692208082,2.84416442,98.551,98.474,105.374]
[1644692208289,2.84416442,98.552,98.474,105.374]
[1644692208584,34.9379,98.55,98.474,5.074]
[1644692208785,2.84416442,98.547,98.474,5.074]
[1644692208986,39.10785708,98.545,98.474,5.074]
[1644692209189,9.46841251,98.544,98.474,5.074]
[1644692209385,14.63,98.53,98.474,5.074]
[1644692209885,14.63,98.53,98.475,0.25]
[1644692210094,5.075,98.529,98.475,0.25]
[1644692213789,14.63,98.53,98.475,0.25]
[1644692213988,24.2787,98.542,98.476,5.075]
[1644692214190,2.84416442,98.554,98.476,5.075]
[1644692214392,5.075,98.553,98.477,2.62390296]
[1644692214589,2.84416442,98.568,98.479,100.3]
[1644692214789,9.48210404,98.575,98.479,100.3]
[1644692214991,4.40710404,98.574,98.48,2.62390296]
[1644692215189,5.074,98.573,98.48,2.62390296]
[1644692215390,51.09402187,98.572,98.5,15.2271]
[1644692215690,46.68691783,98.572,98.503,100.3]
[1644692215889,46.68691783,98.572,98.504,5.074]
[1644692216089,46.68691783,98.572,98.504,105.374]
[1644692216289,46.68691783,98.572,98.504,100.3]
[1644692216491,5.074,98.571,98.504,100.3]
[1644692218393,46.68691783,98.572,98.504,100.3]
[1644692221093,5.074,98.571,98.504,100.3]
[1644692222495,5.074,98.571,98.51,15.2258]
[1644692222699,0.03188374,98.583,98.511,100.3]
[1644692222897,0.03188374,98.585,98.511,105.374]
[1644692223097,0.03188374,98.583,98.511,105.374]
[1644692223297,0.03188374,98.593,98.511,105.374]
[1644692223496,40.36690482,98.575,98.511,105.374]
[1644692225899,5.073,98.574,98.511,105.374]
[1644692226099,5.073,98.574,98.511,100.3]
[1644692228102,40.36690482,98.575,98.511,100.3]
[1644692229500,5.073,98.574,98.511,100.3]
[1644692233509,5.073,98.574,98.51,15.2258]
[1644692233707,27.9204,98.574,98.511,100.3]
[1644692235110,27.9204,98.574,98.51,15.2258]
[1644692236310,22.8474,98.574,98.511,5.073]
[1644692236711,22.7812248,98.574,98.511,5.073]
[1644692237112,22.7812248,98.574,98.512,100.3]
[1644692237313,22.7812248,98.574,98.513,5.073]
[1644692237514,22.7812248,98.574,98.513,105.373]
[1644692237713,22.7812248,98.574,98.513,100.3]
[1644692237915,22.7812248,98.574,98.514,5.073]
[1644692239133,0.03188374,98.585,98.515,100.3]
[1644692239335,0.03188374,98.588,98.52,15.224]
[1644692239535,9.57366906,98.63,98.52,15.224]
[1644692239536,0.03188374,98.59,98.52,29.854]
[1644692239735,0.03188374,98.598,98.521,17.26894933]
[1644692239935,4.27285004,98.656,98.521,17.26894933]
[1644692239936,0.03188374,98.615,98.521,46.13224731]
[1644692240138,0.03188374,98.625,98.523,100.3]
[1644692240338,0.03188374,98.614,98.541,100.3]
[1644692240538,0.03188374,98.624,98.543,100.3]
[1644692240737,9.50373326,98.636,98.543,100.3]
[1644692240936,0.03188374,98.624,98.543,100.3]
[1644692241136,5.071,98.623,98.543,100.3]
[1644692241339,0.03188374,98.624,98.544,2.62390296]
[1644692241538,4.39918704,98.633,98.544,7.69490296]
[1644692241737,0.03188374,98.624,98.56,15.2181]
[1644692242039,0.03188374,98.632,98.562,100.3]
[1644692242238,4.39918704,98.634,98.563,105.371]
[1644692242437,4.39918704,98.634,98.563,100.3]
[1644692243641,5.071,98.633,98.562,5.071]
[1644692243942,4.39918704,98.632,98.562,5.071]
[1644692244141,15.22,98.63,98.562,5.071]
[1644692244339,4.39918704,98.629,98.561,23.563]
[1644692244540,9.47018704,98.629,98.561,23.563]
[1644692244739,4.39918704,98.628,98.561,23.563]
[1644692244938,4.39918704,98.628,98.562,0.25]
[1644692245140,4.39918704,98.629,98.562,0.25]
[1644692246142,15.2214,98.62,98.562,0.25]
[1644692246342,5.071,98.619,98.562,0.25]
[1644692246547,39.15375442,98.619,98.521,100.3]
[1644692246741,2.84416442,98.614,98.521,100.3]
[1644692246942,2.84416442,98.612,98.521,100.3]
[1644692247244,7.24335146,98.612,98.523,100.3]
[1644692247443,5.10388374,98.611,98.523,100.3]
[1644692247643,4.43107078,98.61,98.523,100.3]
[1644692247846,39.71844629,98.599,98.524,24.7511]
[1644692248044,29.3531,98.598,98.524,24.7511]
[1644692248848,29.3531,98.598,98.525,0.25]
[1644692252053,4.39469589,98.597,98.525,0.25]
[1644692252252,5.073,98.596,98.525,100.55]
[1644692252653,24.2811,98.598,98.527,100.3]
[1644692252854,24.2811,98.598,98.528,5.072]
[1644692253054,5.072,98.597,98.527,100.3]
[1644692255059,5.072,98.597,98.525,0.25]
[1644692255261,24.2811,98.598,98.525,0.25]
[1644692255462,4.39486253,98.597,98.525,0.25]
[1644692255667,4.39486253,98.597,98.525,100.55]
[1644692256665,4.39486253,98.597,98.527,100.3]
[1644692257864,9.46686253,98.597,98.528,5.072]
[1644692258166,4.39486253,98.596,98.529,100.3]
[1644692259567,9.46686253,98.596,98.53,5.072]
[1644692259766,5.072,98.597,98.531,100.3]
[1644692259966,4.39581939,98.596,98.531,100.3]
[1644692260167,4.39581939,98.596,98.533,100.3]
[1644692260367,0.03188374,98.611,98.533,100.3]
[1644692260568,2.03188374,98.612,98.535,100.3]
[1644692260766,2.0,98.612,98.535,100.3]
[1644692260967,2.0,98.612,98.537,100.3]
[1644692261167,2.03188374,98.612,98.539,100.3]
[1644692261367,45.52296795,98.611,98.539,100.3]
[1644692261568,45.52296795,98.611,98.55,15.2188]
[1644692261771,45.52296795,98.611,98.552,41.63471505]
[1644692261969,45.52296795,98.611,98.553,100.3]
[1644692262170,44.52296795,98.611,98.553,100.3]
[1644692263170,2.0,98.612,98.553,100.3]
[1644692264275,40.73797917,98.612,98.553,100.3]
[1644692265993,5.071,98.611,98.553,100.3]
[1644692266293,5.071,98.611,98.552,41.63471505]
[1644692266796,5.071,98.611,98.553,0.25]
[1644692268296,5.071,98.611,98.553,100.55]
[1644692268496,1.41124926,98.591,98.553,100.55]
[1644692268895,1.41124926,98.591,98.553,0.25]
[1644692269095,1.41124926,98.59,98.553,0.25]
[1644692270100,1.41124926,98.588,98.553,0.25]
[1644692270500,1.41124926,98.589,98.553,0.25]
[1644692270699,1.41124926,98.581,98.553,0.25]
[1644692271102,1.41124926,98.579,98.553,0.25]
[1644692271302,1.41124926,98.58,98.553,0.25]
[1644692271905,1.41124926,98.578,98.553,0.25]
[1644692272903,1.41124926,98.577,98.553,0.25]
[1644692273304,1.41124926,98.577,98.533,100.3]
[1644692273506,1.41124926,98.573,98.533,100.3]
[1644692273906,1.41124926,98.571,98.539,40.52919343]
[1644692274305,1.41124926,98.572,98.539,40.52919343]
[1644692274707,1.41124926,98.573,98.54,0.25]
[1644692275906,1.41124926,98.572,98.54,0.25]
[1644692276106,1.41124926,98.573,98.54,0.25]
[1644692276909,1.41124926,98.572,98.54,0.25]
[1644692277309,1.41124926,98.573,98.54,0.25]
[1644692277508,42.6991188,98.586,98.54,0.25]
[1644692277509,1.41124926,98.57,98.54,0.25]
[1644692279011,1.41124926,98.571,98.54,0.25]
[1644692280413,1.41124926,98.57,98.54,0.25]
[1644692281016,1.41124926,98.571,98.54,0.25]
[1644692281214,1.41124926,98.57,98.54,0.25]